[Event "XII Paracin Festival 2019"]
[Site "Paracin"]
[Date "2019.07.12"]
[Round "9.9"]
[White "Lorparizangeneh, Shahin"]
[Black "Koksal, Ege"]
[Result "1-0"]
[ECO "D78"]
[WhiteElo "2494"]
[BlackElo "2368"]
[Annotator "ChessBase"]
[PlyCount "106"]
[EventDate "2019.07.05"]
[EventType "swiss"]
[EventCountry "SRB"]
[SourceTitle "playchess.com"]
[Source "ChessBase"]
[SourceQuality "1"]
[TimeControl "5400+30"]

1. Nf3 {[%emt 0:03:00]} d5 {[%emt 0:02:27]} 2. g3 {[%emt 0:00:24]} g6 {[%emt 0:05:39]} 3. Bg2 {[%emt 0:01:21]} Bg7 {[%emt 0:00:02]} 4. d4 {[%emt 0:00:17]} Nf6 {[%emt 0:00:02]} 5. c4 {[%emt 0:00:31]} c6 {[%emt 0:00:01]} 6. O-O {[%emt 0:00:13]} O-O {[%emt 0:00:03]} 7. Qb3 {[%emt 0:00:35]} Qb6 {[%emt 0:02:00]} 8. Nc3 {[%emt 0:00:27]} Be6 {[%emt 0:04:00]} 9. cxd5 {[%emt 0:05:24]} Qxb3 {[%emt 0:03:18]} 10. axb3 {[%emt 0:00:02]} Nxd5 {[%emt 0:00:06]} 11. Ne4 {[%emt 0:10:37]} Na6 {[%emt 0:02:11]} 12. Bd2 {[%emt 0:03:48]} Ndc7 {[%emt 0:20:41]} 13. b4 Bd5 14. Ne5 Rfd8 15. Bc3 f6 16. Nd3 Bxe4 17. Bxe4 f5 18. Bf3 Bxd4 19. Bxd4 Rxd4 20. b5 {[%emt 0:26:25]} Nxb5 {[%emt 0:24:18]} 21. Bxc6 {[%emt 0:00:52]} bxc6 22. Rxa6 Rd6 23. Rc1 Rc8 24. Kf1 Rc7 {[%emt 0:08:44]} 25. Ra5 {[%emt 0:16:54]} Rb7 {[%emt 0:04:17]} 26. Rc4 {[%emt 0:09:54]} Kg7 {[%emt 0:01:31]} 27. b4 {[%emt 0:01:39]} Rb8 {[%emt 0:03:17]} 28. Ne5 {[%emt 0:02:05]} Rb6 {[%emt 0:05:32]} 29. Rc1 {[%emt 0:00:56]} Rb7 {[%emt 0:02:02]} 30. Rxc6 {[%emt 0:02:11]} Rxc6 {[%emt 0:00:14]} 31. Nxc6 {[%emt 0:00:02]} Kf6 {[%emt 0:00:57]} 32. f4 {[%emt 0:01:01]} Rb6 {[%emt 0:02:07]} 33. Ne5 {[%emt 0:00:08]} Ke6 {[%emt 0:00:11]} 34. Ke1 {[%emt 0:00:46]} Nd4 {[%emt 0:01:58]} 35. Rxa7 {[%emt 0:10:50]} Nc2+ {[%emt 0:00:40]} 36. Kf2 {[%emt 0:00:16]} Nxb4 {[%emt 0:00:10]} 37. Nf3 {[%emt 0:02:04]} h6 {[%emt 0:00:20]} 38. h4 {[%emt 0:01:57]} Nd5 {[%emt 0:05:21]} 39. Ne5 {[%emt 0:00:37]} g5 {[%emt 0:04:08]} 40. hxg5 {[%emt 0:00:07]} hxg5 {[%emt 0:00:00]} 41. Nc4 {[%emt 0:02:18]} Rc6 {[%emt 0:00:01]} 42. Na5 {[%emt 0:00:10]} Rc2 {[%emt 0:00:00]} 43. fxg5 {[%emt 0:00:12]} Nc3 {[%emt 0:00:01]} 44. Ra6+ {[%emt 0:01:36]} Kf7 {[%emt 0:00:01]} 45. Nc6 {[%emt 0:01:59]} Rxe2+ {[%emt 0:01:20]} 46. Kf3 {[%emt 0:00:04]} Re1 {[%emt 0:01:14]} 47. Nd8+ {[%emt 0:01:01]} Kg7 {[%emt 0:00:20]} 48. Ne6+ {[%emt 0:00:07]} Kf7 {[%emt 0:00:36]} 49. Nf4 {[%emt 0:00:12]} Rf1+ {[%emt 0:02:52]} 50. Kg2 {[%emt 0:00:11]} Rd1 {[%emt 0:00:29]} 51. g6+ {[%emt 0:00:53]} Kg8 {[%emt 0:00:01]} 52. Ne6 {[%emt 0:00:22]} Rd2+ {[%emt 0:01:39]} 53. Kh3 Rd1 1-0

[Event "XII Paracin Festival 2019"]
[Site "Paracin"]
[Date "2019.07.12"]
[Round "9.10"]
[White "Ratkovic, Milovan"]
[Black "Kosic, Dragan"]
[Result "0-1"]
[ECO "A05"]
[WhiteElo "2407"]
[BlackElo "2482"]
[Annotator "RC"]
[PlyCount "84"]
[EventDate "2019.07.05"]
[EventType "swiss"]
[EventCountry "SRB"]
[SourceTitle "playchess.com"]
[Source "ChessBase"]
[SourceQuality "1"]
[TimeControl "5400+30"]

1. Nf3 {[%emt 0:00:00]} Nf6 {[%emt 0:00:07]} 2. b3 {[%emt 0:00:00]} e6 {[%emt 0:01:29]} 3. Bb2 {[%emt 0:00:00]} b6 {[%emt 0:00:05]} 4. e3 {[%emt 0:01:55]} Bb7 {[%emt 0:00:59]} 5. c4 {[%emt 0:03:26]} c5 {[%emt 0:00:34]} 6. Nc3 {[%emt 0:00:53]} Nc6 {[%emt 0:01:37]} 7. Be2 {[%emt 0:03:16]} Be7 {[%emt 0:00:14]} 8. a3 {[%emt 0:04:47]} O-O {[%emt 0:00:45]} 9. Qc2 {[%emt 0:06:19]} d5 {[%emt 0:01:46]} 10. cxd5 {[%emt 0:02:58]} exd5 {[%emt 0:02:34]} 11. h4 {[%emt 0:07:08]} d4 {[%emt 0:05:25]} 12. Ne4 {[%emt 0:04:53]} Nxe4 {[%emt 0:00:34]} 13. Qxe4 {[%emt 0:00:13]} Na5 {[%emt 0:01:13]} 14. Qc2 {[%emt 0:05:20]} Bd5 {[%emt 0:05:04]} 15. b4 {[%emt 0:03:44]} cxb4 {[%emt 0:01:05]} 16. axb4 {[%emt 0:02:43]} Rc8 {[%emt 0:02:17]} 17. Qb1 {[%emt 0:09:28]} Nb3 {[%emt 0:02:39]} 18. e4 {[%emt 0:13:37]} Nxa1 {[%emt 0:00:50]} 19. O-O {[%emt 0:03:09]} Nc2 {[%emt 0:03:12]} 20. exd5 {[%emt 0:00:11]} Qxd5 {[%emt 0:02:18]} 21. Bd3 {[%emt 0:01:52]} Qb3 {[%emt 0:01:02]} 22. Ne1 {[%emt 0:02:14]} Nxb4 {[%emt 0:01:56]} 23. Bxh7+ {[%emt 0:00:12]} Kh8 {[%emt 0:00:05]} 24. Be4 {[%emt 0:02:32]} Bf6 {[%emt 0:02:24]} 25. Nf3 {[%emt 0:02:25]} Rfe8 {[%emt 0:01:11]} 26. d3 {[%emt 0:14:39]} Qa2 {[%emt 0:04:29]} 27. Qxa2 {[%emt 0:01:15]} Nxa2 {[%emt 0:00:09]} 28. g4 {[%emt 0:01:01]} Rc2 {[%emt 0:07:40]} 29. Ba1 {[%emt 0:02:08]} Nc3 {[%emt 0:03:43]} 30. g5 {[%emt 0:00:11]} Be5 {[%emt 0:01:55]} 31. Re1 {[%emt 0:01:02]} Nxe4 {[%emt 0:02:30]} 32. dxe4 {[%emt 0:00:28]} d3 {[%emt 0:01:51]} 33. Bxe5 {[%emt 0:01:36]} Rxe5 {[%emt 0:07:58]} 34. Rd1 {[%emt 0:00:14]} Rxe4 {[%emt 0:00:58]} 35. Rxd3 {[%emt 0:00:03]} g6 {[%emt 0:00:22]} 36. Rd7 {[%emt 0:00:19]} Rf4 {[%emt 0:00:39]} 37. Kg2 {[%emt 0:00:32]} a5 {[%emt 0:00:23]} 38. Kg3 {[%emt 0:00:36]} Rf5 {[%emt 0:00:22]} 39. Kg4 {[%emt 0:01:40]} Rc4+ {[%emt 0:01:02]} 40. Nd4 {[%emt 0:00:27]} Rxf2 {[%emt 0:00:43]} 41. h5 {[%emt 0:00:17]} Rd2 {[%emt 0:00:51]} 42. Rd8+ {[%emt 0:00:16]} Kg7 {[%emt 0:01:19]} 0-1

[Event "XII Paracin Festival 2019"]
[Site "Paracin"]
[Date "2019.07.12"]
[Round "9.11"]
[White "Petrov, Martin"]
[Black "Nandhidhaa, P V"]
[Result "1/2-1/2"]
[ECO "B47"]
[WhiteElo "2480"]
[BlackElo "2259"]
[Annotator "RC"]
[PlyCount "57"]
[EventDate "2019.07.05"]
[EventType "swiss"]
[EventCountry "SRB"]
[SourceTitle "playchess.com"]
[Source "ChessBase"]
[SourceQuality "1"]
[TimeControl "5400+30"]

1. e4 {[%emt 0:00:00]} c5 {[%emt 0:02:29]} 2. Nf3 {[%emt 0:00:00]} e6 {[%emt 0:00:04]} 3. d4 {[%emt 0:00:00]} cxd4 {[%emt 0:00:04]} 4. Nxd4 {[%emt 0:00:00]} Nc6 {[%emt 0:00:06]} 5. Nc3 {[%emt 0:00:00]} Qc7 {[%emt 0:00:03]} 6. Be2 {[%emt 0:00:06]} Nf6 {[%emt 0:00:24]} 7. O-O {[%emt 0:00:44]} Be7 {[%emt 0:00:17]} 8. Kh1 {[%emt 0:00:41]} O-O {[%emt 0:01:24]} 9. f4 {[%emt 0:00:12]} d6 {[%emt 0:00:45]} 10. Be3 {[%emt 0:00:13]} Nxd4 {[%emt 0:00:08]} 11. Bxd4 {[%emt 0:01:09]} e5 {[%emt 0:00:10]} 12. Be3 {[%emt 0:00:17]} a6 {[%emt 0:00:12]} 13. a4 {[%emt 0:05:15]} exf4 {[%emt 0:00:07]} 14. Bxf4 {[%emt 0:03:34]} Be6 {[%emt 0:01:13]} 15. Qe1 {[%emt 0:15:51]} Nd7 {[%emt 0:04:30]} 16. Qg3 {[%emt 0:03:47]} Ne5 {[%emt 0:01:53]} 17. Rad1 {[%emt 0:00:07]} Rad8 {[%emt 0:05:07]} 18. Bc1 {[%emt 0:02:00]} Rc8 {[%emt 0:08:00]} 19. h4 {[%emt 0:02:19]} Qd8 {[%emt 0:05:31]} 20. h5 {[%emt 0:07:13]} Bh4 {[%emt 0:02:41]} 21. Qh2 {[%emt 0:01:29]} h6 {[%emt 0:03:06]} 22. Bf4 {[%emt 0:08:03]} Qe7 {[%emt 0:09:22]} 23. Rxd6 {[%emt 0:14:37]} Qxd6 {[%emt 0:01:00]} 24. Bxe5 {[%emt 0:00:13]} Qd8 {[%emt 0:05:29]} 25. Rd1 {[%emt 0:02:49]} Qg5 {[%emt 0:01:02]} 26. Bf4 {[%emt 0:00:57]} Qf6 {[%emt 0:01:07]} 27. Be5 {[%emt 0:00:37]} Qg5 {[%emt 0:00:05]} 28. Bf4 {[%emt 0:05:09]} Qf6 {[%emt 0:00:12]} 29. Be5 {[%emt 0:10:46]} 1/2-1/2

[Event "XII Paracin Festival 2019"]
[Site "Paracin"]
[Date "2019.07.12"]
[Round "9.13"]
[White "Stankovic, Milos"]
[Black "McPhillips, Joseph"]
[Result "0-1"]
[ECO "C11"]
[WhiteElo "2462"]
[BlackElo "2412"]
[Annotator "ChessBase"]
[PlyCount "108"]
[EventDate "2019.07.05"]
[EventType "swiss"]
[EventCountry "SRB"]
[SourceTitle "playchess.com"]
[Source "ChessBase"]
[SourceQuality "1"]
[TimeControl "5400+30"]

1. e4 {[%emt 0:00:00]} e6 {[%emt 0:03:45]} 2. d4 {[%emt 0:00:11]} d5 {[%emt 0:00:09]} 3. Nc3 {[%emt 0:00:36]} Nf6 {[%emt 0:00:06]} 4. Bg5 {[%emt 0:00:28]} dxe4 {[%emt 0:00:06]} 5. Nxe4 {[%emt 0:00:35]} Be7 {[%emt 0:00:04]} 6. Bxf6 {[%emt 0:00:26]} gxf6 {[%emt 0:00:03]} 7. Qd2 {[%emt 0:00:21]} f5 {[%emt 0:00:08]} 8. Nc3 {[%emt 0:00:30]} a6 {[%emt 0:00:09]} 9. g3 {[%emt 0:00:41]} Qd6 {[%emt 0:01:02]} 10. O-O-O {[%emt 0:05:31]} c6 {[%emt 0:01:11]} 11. Bg2 {[%emt 0:03:46]} Nd7 {[%emt 0:00:07]} 12. Nf3 {[%emt 0:00:45]} b5 {[%emt 0:01:16]} 13. Qe2 {[%emt 0:12:24]} Bb7 {[%emt 0:06:22]} 14. Rhe1 {[%emt 0:05:20]} O-O-O {[%emt 0:22:11]} 15. Kb1 {[%emt 0:03:03]} Qc7 {[%emt 0:02:00]} 16. Qe3 {[%emt 0:03:56]} Nb6 {[%emt 0:04:25]} 17. Ne5 {[%emt 0:04:40]} Bb4 {[%emt 0:00:03]} 18. f4 {[%emt 0:08:28]} Kb8 {[%emt 0:07:41]} 19. Qf3 {[%emt 0:08:04]} Rc8 {[%emt 0:00:25]} 20. a3 {[%emt 0:00:39]} Bd6 {[%emt 0:01:44]} 21. Qh5 {[%emt 0:04:40]} Rhf8 {[%emt 0:02:45]} 22. Re2 {[%emt 0:01:39]} Nd7 {[%emt 0:10:54]} 23. Qh6 {[%emt 0:04:16]} Nxe5 {[%emt 0:04:16]} 24. fxe5 {[%emt 0:02:05]} Be7 {[%emt 0:00:02]} 25. Na2 {[%emt 0:02:06]} Rh8 {[%emt 0:03:53]} 26. Nc1 {[%emt 0:03:04]} Rcd8 {[%emt 0:02:27]} 27. Red2 {[%emt 0:01:28]} Rhg8 {[%emt 0:00:55]} 28. Qh5 {[%emt 0:00:27]} Bg5 29. Rd3 {[%emt 0:00:29]} f6 {[%emt 0:05:10]} 30. exf6 {[%emt 0:00:26]} Bxf6 {[%emt 0:00:02]} 31. Nb3 {[%emt 0:01:01]} f4 {[%emt 0:00:59]} 32. Nc5 {[%emt 0:01:14]} Bc8 {[%emt 0:00:07]} 33. Qf3 {[%emt 0:00:52]} e5 {[%emt 0:01:14]} 34. gxf4 {[%emt 0:06:42]} exd4 {[%emt 0:01:05]} 35. Qxc6 {[%emt 0:00:47]} Rxg2 {[%emt 0:01:24]} 36. Nxa6+ {[%emt 0:01:51]} Bxa6 {[%emt 0:00:05]} 37. Qxg2 {[%emt 0:00:08]} Bb7 {[%emt 0:00:23]} 38. Qe2 {[%emt 0:00:13]} Bd5 {[%emt 0:01:07]} 39. Qh5 {[%emt 0:01:56]} Qc6 {[%emt 0:02:26]} 40. Re1 {[%emt 0:01:28]} Rc8 {[%emt 0:02:39]} 41. Rd2 {[%emt 0:00:30]} Qc4 {[%emt 0:00:52]} 42. b3 {[%emt 0:00:20]} Qc5 {[%emt 0:00:13]} 43. Qf5 {[%emt 0:00:59]} Qc6 {[%emt 0:03:45]} 44. Re5 {[%emt 0:01:01]} Bxe5 {[%emt 0:04:15]} 45. Qxe5+ {[%emt 0:00:08]} Kb7 {[%emt 0:00:09]} 46. Qxd4 {[%emt 0:00:11]} Be4 {[%emt 0:00:18]} 47. Kb2 {[%emt 0:02:46]} Bxc2 {[%emt 0:01:25]} 48. Re2 {[%emt 0:00:01]} Rc7 {[%emt 0:00:52]} 49. a4 {[%emt 0:02:14]} Bg6 {[%emt 0:01:21]} 50. Ka3 {[%emt 0:00:26]} bxa4 {[%emt 0:00:53]} 51. Re5 {[%emt 0:01:56]} Qc1+ {[%emt 0:01:45]} 52. Kxa4 {[%emt 0:00:43]} Kc8 {[%emt 0:00:25]} 53. Ra5 {[%emt 0:01:41]} Be8+ {[%emt 0:00:41]} 54. Kb4 {[%emt 0:00:16]} Qe1+ {[%emt 0:00:08]} 0-1

[Event "XII Paracin Festival 2019"]
[Site "Paracin"]
[Date "2019.07.12"]
[Round "9.14"]
[White "Maksimovic, Bojan"]
[Black "Tanriverdi, Enes"]
[Result "1/2-1/2"]
[ECO "B85"]
[WhiteElo "2326"]
[BlackElo "2374"]
[Annotator "ChessBase"]
[PlyCount "241"]
[EventDate "2019.07.05"]
[EventType "swiss"]
[EventCountry "SRB"]
[SourceTitle "playchess.com"]
[Source "ChessBase"]
[SourceQuality "1"]
[TimeControl "5400+30"]

1. e4 {[%emt 0:00:00]} c5 {[%emt 0:00:00]} 2. Nf3 {[%emt 0:00:00]} e6 {[%emt 0:00:00]} 3. d4 {[%emt 0:00:00]} cxd4 {[%emt 0:00:00]} 4. Nxd4 {[%emt 0:00:00]} Nc6 {[%emt 0:00:00]} 5. Nc3 {[%emt 0:00:28]} Qc7 {[%emt 0:00:00]} 6. Be2 {[%emt 0:00:45]} a6 {[%emt 0:00:09]} 7. O-O {[%emt 0:00:55]} Nf6 {[%emt 0:00:07]} 8. Be3 {[%emt 0:01:48]} Be7 {[%emt 0:00:07]} 9. f4 {[%emt 0:01:06]} d6 {[%emt 0:00:07]} 10. Qe1 {[%emt 0:01:03]} O-O {[%emt 0:00:12]} 11. Qg3 {[%emt 0:00:33]} Nxd4 {[%emt 0:00:16]} 12. Bxd4 {[%emt 0:00:18]} b5 {[%emt 0:00:07]} 13. a3 {[%emt 0:00:49]} Bb7 {[%emt 0:00:05]} 14. Rae1 {[%emt 0:00:37]} Rad8 {[%emt 0:00:46]} 15. Bd3 {[%emt 0:00:40]} Bc6 {[%emt 0:00:18]} 16. Kh1 {[%emt 0:00:51]} Qd7 {[%emt 0:00:06]} 17. Qh3 {[%emt 0:02:45]} e5 {[%emt 0:00:18]} 18. fxe5 {[%emt 0:03:16]} Qxh3 {[%emt 0:00:08]} 19. gxh3 {[%emt 0:01:10]} dxe5 {[%emt 0:00:05]} 20. Bxe5 {[%emt 0:01:22]} Rfe8 {[%emt 0:00:56]} 21. b4 {[%emt 0:06:21]} Rc8 {[%emt 0:23:12]} 22. Re2 {[%emt 0:13:38]} Nd7 {[%emt 0:08:51]} 23. Bg3 {[%emt 0:06:13]} Bd8 {[%emt 0:08:09]} 24. a4 {[%emt 0:15:10]} Bb7 {[%emt 0:01:25]} 25. Be1 {[%emt 0:17:38]} Bf6 {[%emt 0:01:40]} 26. Nd5 {[%emt 0:04:41]} bxa4 {[%emt 0:00:31]} 27. Rg2 {[%emt 0:03:30]} Bxd5 {[%emt 0:07:55]} 28. exd5 {[%emt 0:00:02]} a3 {[%emt 0:00:01]} 29. c4 {[%emt 0:02:06]} Ne5 {[%emt 0:00:16]} 30. Rxf6 {[%emt 0:10:37]} Nxd3 {[%emt 0:00:21]} 31. Bc3 {[%emt 0:00:52]} Rxc4 {[%emt 0:04:16]} 32. Rc6 {[%emt 0:00:23]} Rxc6 {[%emt 0:02:42]} 33. Rxg7+ {[%emt 0:00:48]} Kf8 {[%emt 0:01:38]} 34. dxc6 {[%emt 0:00:06]} Rc8 {[%emt 0:14:11]} 35. b5 {[%emt 0:06:19]} axb5 {[%emt 0:06:33]} 36. Rg3 {[%emt 0:00:06]} Rxc6 {[%emt 0:16:15]} 37. Bg7+ {[%emt 0:00:24]} Ke7 {[%emt 0:00:55]} 38. Re3+ {[%emt 0:00:49]} Re6 {[%emt 0:00:41]} 39. Rxd3 {[%emt 0:00:05]} b4 {[%emt 0:00:07]} 40. Rb3 {[%emt 0:01:08]} f6 {[%emt 0:00:58]} 41. Rxb4 {[%emt 0:00:10]} a2 {[%emt 0:00:32]} 42. Rb7+ {[%emt 0:00:04]} Kd6 {[%emt 0:00:16]} 43. Ra7 {[%emt 0:00:36]} Re1+ {[%emt 0:00:05]} 44. Kg2 {[%emt 0:00:02]} a1=Q {[%emt 0:00:19]} 45. Rxa1 {[%emt 0:00:05]} Rxa1 {[%emt 0:00:02]} 46. Bxf6 {[%emt 0:00:07]} Ra2+ {[%emt 0:00:13]} 47. Kg3 {[%emt 0:00:15]} Ke6 {[%emt 0:00:05]} 48. Bh8 {[%emt 0:00:27]} Kf5 {[%emt 0:00:01]} 49. Bg7 {[%emt 0:00:51]} Ra3+ {[%emt 0:00:07]} 50. Kg2 {[%emt 0:01:14]} Ra6 {[%emt 0:00:51]} 51. Kf3 {[%emt 0:00:49]} Ra3+ {[%emt 0:00:14]} 52. Kg2 {[%emt 0:00:05]} Ke4 {[%emt 0:00:14]} 53. Bf8 {[%emt 0:00:50]} Rd3 {[%emt 0:00:30]} 54. Bg7 {[%emt 0:00:34]} Rd6 {[%emt 0:00:19]} 55. Bc3 {[%emt 0:00:47]} Ke3 {[%emt 0:00:27]} 56. Kg3 {[%emt 0:00:58]} Rg6+ {[%emt 0:00:39]} 57. Kh4 {[%emt 0:00:05]} Kf3 {[%emt 0:00:04]} 58. Kh5 {[%emt 0:01:02]} Kg2 {[%emt 0:00:13]} 59. h4 {[%emt 0:00:09]} Kxh2 {[%emt 0:00:12]} 60. Bd2 {[%emt 0:00:15]} Kg3 {[%emt 0:00:18]} 61. Bg5 {[%emt 0:00:18]} Kf3 {[%emt 0:00:04]} 62. Bd2 {[%emt 0:00:12]} Ke4 {[%emt 0:00:04]} 63. Bg5 {[%emt 0:00:07]} Kf5 {[%emt 0:00:04]} 64. Bc1 {[%emt 0:00:15]} Ke6 {[%emt 0:01:15]} 65. Bd2 {[%emt 0:00:12]} Kf7 {[%emt 0:00:04]} 66. Be3 {[%emt 0:00:31]} Re6 {[%emt 0:00:12]} 67. Bd4 {[%emt 0:00:21]} Kg8 {[%emt 0:01:30]} 68. Bc3 {[%emt 0:00:23]} h6 {[%emt 0:00:40]} 69. Bd2 {[%emt 0:01:13]} Kh7 {[%emt 0:00:04]} 70. Bf4 {[%emt 0:00:37]} Ra6 {[%emt 0:00:08]} 71. Kg4 {[%emt 0:00:06]} Rg6+ {[%emt 0:00:19]} 72. Kh5 {[%emt 0:00:09]} Rf6 {[%emt 0:00:04]} 73. Kg4 {[%emt 0:01:51]} Rg6+ {[%emt 0:00:07]} 74. Kh5 {[%emt 0:00:04]} Rb6 {[%emt 0:01:45]} 75. Kg4 {[%emt 0:00:05]} Rb5 {[%emt 0:00:06]} 76. h5 {[%emt 0:00:05]} Kg7 {[%emt 0:00:03]} 77. Be3 {[%emt 0:00:13]} Rb4+ {[%emt 0:00:04]} 78. Bf4 {[%emt 0:00:17]} Kf6 {[%emt 0:00:24]} 79. Kf3 {[%emt 0:00:21]} Kf5 {[%emt 0:00:06]} 80. Bxh6 {[%emt 0:00:04]} Rh4 {[%emt 0:00:02]} 81. Be3 {[%emt 0:00:11]} Rxh5 {[%emt 0:00:02]} 82. Bf2 {[%emt 0:00:22]} Rh3+ {[%emt 0:00:02]} 83. Kg2 {[%emt 0:00:12]} Kg4 {[%emt 0:00:04]} 84. Bg1 {[%emt 0:00:10]} Ra3 {[%emt 0:00:05]} 85. Kh1 {[%emt 0:00:21]} Kh3 {[%emt 0:00:40]} 86. Bf2 {[%emt 0:00:12]} Ra1+ {[%emt 0:00:13]} 87. Bg1 {[%emt 0:00:05]} Ra2 {[%emt 0:00:28]} 88. Be3 {[%emt 0:00:35]} Kg3 {[%emt 0:00:08]} 89. Bg1 {[%emt 0:00:46]} Rg2 {[%emt 0:00:05]} 90. Bd4 {[%emt 0:00:44]} Rh2+ {[%emt 0:00:07]} 91. Kg1 {[%emt 0:00:04]} Rd2 {[%emt 0:00:20]} 92. Be5+ {[%emt 0:00:06]} Kf3 {[%emt 0:00:03]} 93. Bc7 {[%emt 0:00:48]} Rg2+ {[%emt 0:00:10]} 94. Kh1 {[%emt 0:00:16]} Rg6 {[%emt 0:00:13]} 95. Bh2 {[%emt 0:00:20]} Kf2 {[%emt 0:00:38]} 96. Bc7 {[%emt 0:01:06]} Rc6 {[%emt 0:00:04]} 97. Be5 {[%emt 0:00:16]} Rc4 {[%emt 0:00:39]} 98. Bd6 {[%emt 0:00:25]} Rc1+ {[%emt 0:00:56]} 99. Kh2 {[%emt 0:00:08]} Rc6 {[%emt 0:00:06]} 100. Bg3+ Kf3 101. Be5 {[%emt 0:00:37]} Rc4 {[%emt 0:00:35]} 102. Bd6 {[%emt 0:00:21]} Rh4+ {[%emt 0:00:42]} 103. Kg1 {[%emt 0:00:01]} Rh6 {[%emt 0:00:09]} 104. Bc7 {[%emt 0:00:57]} Rg6+ {[%emt 0:00:09]} 105. Kh1 {[%emt 0:00:12]} Kf2 {[%emt 0:00:11]} 106. Bh2 {[%emt 0:00:06]} Rg2 {[%emt 0:00:22]} 107. Bd6 {[%emt 0:00:13]} Kf1 {[%emt 0:00:18]} 108. Bh2 {[%emt 0:00:13]} Rb2 {[%emt 0:00:16]} 109. Bg1 {[%emt 0:00:15]} Rb3 {[%emt 0:00:30]} 110. Bh2 {[%emt 0:00:13]} Kf2 {[%emt 0:00:15]} 111. Bg1+ {[%emt 0:00:16]} Kg3 {[%emt 0:00:04]} 112. Bh2+ {[%emt 0:00:04]} Kf3 {[%emt 0:00:19]} 113. Bg1 {[%emt 0:00:21]} Rb7 {[%emt 0:00:08]} 114. Bh2 {[%emt 0:00:08]} Rh7 {[%emt 0:00:01]} 115. Kg1 {[%emt 0:00:06]} Rd7 {[%emt 0:01:00]} 116. Kh1 {[%emt 0:00:13]} Rd1+ {[%emt 0:00:33]} 117. Bg1 {[%emt 0:00:02]} Ra1 {[%emt 0:00:04]} 118. Kh2 {[%emt 0:00:06]} Ra2+ {[%emt 0:00:13]} 119. Kh1 {[%emt 0:00:15]} Kg3 {[%emt 0:00:05]} 120. Bc5 {[%emt 0:00:13]} Rc2 {[%emt 0:00:22]} 121. Bg1 {[%emt 0:00:08]} 1/2-1/2

[Event "XII Paracin Festival 2019"]
[Site "Paracin"]
[Date "2019.07.12"]
[Round "9.16"]
[White "O`Donnell, Conor"]
[Black "Harvey, Marcus R"]
[Result "0-1"]
[ECO "E18"]
[WhiteElo "2341"]
[BlackElo "2402"]
[Annotator "RC"]
[PlyCount "78"]
[EventDate "2019.07.05"]
[EventType "swiss"]
[EventCountry "SRB"]
[SourceTitle "playchess.com"]
[Source "ChessBase"]
[SourceQuality "1"]
[TimeControl "5400+30"]

1. Nf3 {[%emt 0:06:16]} Nf6 {[%emt 0:00:44]} 2. c4 {[%emt 0:00:15]} e6 {[%emt 0:00:40]} 3. g3 {[%emt 0:00:24]} b6 {[%emt 0:00:03]} 4. Bg2 {[%emt 0:00:26]} Bb7 {[%emt 0:00:05]} 5. O-O {[%emt 0:00:12]} Be7 {[%emt 0:00:33]} 6. d4 {[%emt 0:00:46]} O-O {[%emt 0:00:05]} 7. Nc3 {[%emt 0:00:07]} Ne4 {[%emt 0:00:08]} 8. Bd2 {[%emt 0:00:21]} d6 {[%emt 0:01:48]} 9. d5 {[%emt 0:03:55]} Nxd2 {[%emt 0:00:32]} 10. Nxd2 {[%emt 0:01:46]} e5 {[%emt 0:00:03]} 11. e4 {[%emt 0:00:46]} g6 {[%emt 0:01:22]} 12. Qc2 {[%emt 0:06:11]} Nd7 {[%emt 0:06:08]} 13. b4 {[%emt 0:01:59]} Nf6 {[%emt 0:01:03]} 14. Nb3 {[%emt 0:06:48]} Nh5 {[%emt 0:04:51]} 15. c5 {[%emt 0:07:32]} Bc8 {[%emt 0:01:27]} 16. a4 {[%emt 0:03:21]} f5 {[%emt 0:00:42]} 17. f3 {[%emt 0:01:15]} Bg5 {[%emt 0:02:31]} 18. a5 {[%emt 0:03:56]} Be3+ {[%emt 0:01:46]} 19. Kh1 {[%emt 0:00:03]} Qg5 {[%emt 0:00:37]} 20. Bh3 {[%emt 0:04:24]} bxc5 {[%emt 0:02:07]} 21. bxc5 {[%emt 0:00:50]} Rb8 {[%emt 0:05:27]} 22. Nd1 {[%emt 0:12:00]} Nxg3+ {[%emt 0:00:55]} 23. hxg3 {[%emt 0:00:32]} Qxg3 {[%emt 0:00:13]} 24. Nxe3 {[%emt 0:01:04]} Qxh3+ {[%emt 0:00:05]} 25. Kg1 {[%emt 0:00:19]} fxe4 {[%emt 0:01:04]} 26. Rab1 {[%emt 0:04:55]} Ba6 {[%emt 0:01:43]} 27. Rfc1 {[%emt 0:09:08]} Bd3 {[%emt 0:01:10]} 28. Qg2 {[%emt 0:01:50]} Qxg2+ {[%emt 0:00:08]} 29. Nxg2 {[%emt 0:00:22]} Bxb1 {[%emt 0:00:17]} 30. Rxb1 {[%emt 0:00:06]} Rxf3 {[%emt 0:00:09]} 31. Nd2 {[%emt 0:00:12]} Rxb1+ {[%emt 0:00:08]} 32. Nxb1 {[%emt 0:00:04]} Rd3 {[%emt 0:00:14]} 33. cxd6 {[%emt 0:00:19]} cxd6 {[%emt 0:00:09]} 34. Kf2 {[%emt 0:00:06]} Rxd5 {[%emt 0:00:13]} 35. Nc3 {[%emt 0:00:56]} Rxa5 {[%emt 0:00:10]} 36. Ne3 {[%emt 0:00:26]} Kf7 {[%emt 0:01:34]} 37. Nc4 {[%emt 0:01:03]} Ra6 {[%emt 0:00:50]} 38. Nxe4 {[%emt 0:00:07]} Ra2+ {[%emt 0:02:05]} 39. Ned2 {[%emt 0:01:17]} Ke6 {[%emt 0:00:18]} 0-1